[Event "CZE-ch Amateurs 2022"]
[Site "Luhacovice"]
[Date "2022.03.14"]
[Round "3.7"]
[White "Benes, Miroslav"]
[Black "Buchcar, Tomas"]
[Result "1/2-1/2"]
[ECO "B15"]
[WhiteElo "1929"]
[BlackElo "2121"]
[Annotator "NA"]
[PlyCount "86"]
[EventDate "2022.03.12"]
[EventType "swiss"]
[EventCountry "CZE"]
[SourceTitle "playchess.com"]
[Source "ChessBase"]
[SourceQuality "1"]
[TimeControl "5400+30"]

1. e4 {[%emt 0:00:07]} c6 {[%emt 0:00:27]} 2. d4 {[%emt 0:00:15]} d5 {[%emt 0:00:04]} 3. f3 {[%emt 0:00:25]} g6 {[%emt 0:01:02]} 4. Nc3 {[%emt 0:03:31]} Bg7 {[%emt 0:00:21]} 5. e5 {[%emt 0:00:38]} Bf5 {[%emt 0:03:03]} 6. g4 {[%emt 0:04:46]} Be6 {[%emt 0:00:06]} 7. Bg2 {[%emt 0:07:38]} h5 {[%emt 0:03:38]} 8. h3 {[%emt 0:06:59]} Na6 {[%emt 0:01:45]} 9. Bf4 {[%emt 0:02:20]} Qd7 {[%emt 0:00:27]} 10. Nge2 {[%emt 0:02:19]} O-O-O {[%emt 0:02:24]} 11. Qd2 {[%emt 0:04:47]} hxg4 {[%emt 0:13:04]} 12. fxg4 {[%emt 0:04:48]} f6 {[%emt 0:01:06]} 13. exf6 {[%emt 0:01:29]} exf6 {[%emt 0:00:37]} 14. O-O-O {[%emt 0:00:46]} Bf8 {[%emt 0:01:33]} 15. Rhe1 {[%emt 0:05:01]} Bd6 {[%emt 0:03:10]} 16. Bxd6 {[%emt 0:07:00]} Qxd6 {[%emt 0:00:01]} 17. Nf4 {[%emt 0:00:40]} Bf7 {[%emt 0:00:02]} 18. Re2 {[%emt 0:01:20]} Nc7 {[%emt 0:00:50]} 19. Rde1 {[%emt 0:00:27]} Re8 {[%emt 0:02:48]} 20. Rxe8+ {[%emt 0:02:24]} Bxe8 {[%emt 0:00:39]} 21. Qe3 {[%emt 0:01:45]} Rh7 {[%emt 0:03:02]} 22. Qf2 {[%emt 0:03:58]} g5 {[%emt 0:11:25]} 23. Nd3 {[%emt 0:01:03]} Bg6 {[%emt 0:00:19]} 24. Nc5 {[%emt 0:03:08]} b6 {[%emt 0:00:41]} 25. Nb3 {[%emt 0:00:14]} Ne6 {[%emt 0:02:16]} 26. Ne2 {[%emt 0:02:38]} Re7 {[%emt 0:02:14]} 27. Rf1 {[%emt 0:02:14]} Kd7 {[%emt 0:06:05]} 28. Kb1 {[%emt 0:00:58]} Rf7 {[%emt 0:06:55]} 29. Qe1 {[%emt 0:04:47]} f5 {[%emt 0:01:52]} 30. gxf5 {[%emt 0:00:09]} Rxf5 {[%emt 0:00:13]} 31. Bf3 {[%emt 0:01:45]} Nh6 {[%emt 0:02:53]} 32. Nbc1 $15 {[%emt 0:01:40]} Nf4 {[%emt 0:01:50]} 33. Bg4 {[%emt 0:03:48]} Nxg4 {[%emt 0:00:14]} 34. hxg4 {[%emt 0:00:30]} Rf8 {[%emt 0:06:41]} 35. Qd2 {[%emt 0:03:29]} Nxe2 {[%emt 0:02:29]} 36. Rxf8 {[%emt 0:08:33]} Qxf8 {[%emt 0:00:01]} 37. Qxe2 {[%emt 0:00:25]} Qf4 {[%emt 0:01:52]} 38. Qa6 {[%emt 0:02:13]} Qxd4 {[%emt 0:02:02]} 39. Qxa7+ {[%emt 0:00:19]} Ke6 {[%emt 0:00:14]} 40. Qb7 {[%emt 0:00:46]} Qc5 {[%emt 0:05:39]} 41. Qc8+ {[%emt 0:00:34]} Kf7 {[%emt 0:01:54]} 42. Qc7+ {[%emt 0:00:38]} Kg8 {[%emt 0:01:20]} 43. Qb8+ {[%emt 0:00:14]} Kf7 {[%emt 0:06:31]} 1/2-1/2

[Event "CZE-ch Amateurs 2022"]
[Site "Luhacovice"]
[Date "2022.03.14"]
[Round "3.8"]
[White "Tresnak, Filip"]
[Black "Pilch, Roman"]
[Result "0-1"]
[ECO "A34"]
[WhiteElo "1931"]
[BlackElo "2136"]
[Annotator "ChessBase"]
[PlyCount "161"]
[EventDate "2022.03.12"]
[EventType "swiss"]
[EventCountry "CZE"]
[SourceTitle "playchess.com"]
[Source "ChessBase"]
[SourceQuality "1"]
[TimeControl "5400+30"]

1. c4 {[%emt 0:00:09]} Nf6 {[%emt 0:00:12]} 2. Nc3 {[%emt 0:00:31]} c5 {[%emt 0:00:07]} 3. e4 {[%emt 0:00:33]} d6 {[%emt 0:01:07]} 4. d3 {[%emt 0:01:04]} Nc6 {[%emt 0:00:22]} 5. Nge2 {[%emt 0:00:46]} g6 {[%emt 0:01:08]} 6. h3 {[%emt 0:04:19]} Bg7 {[%emt 0:01:49]} 7. Be3 {[%emt 0:00:09]} Bd7 {[%emt 0:00:45]} 8. Qd2 {[%emt 0:03:40]} h6 {[%emt 0:03:03]} 9. f4 {[%emt 0:05:45]} Qa5 {[%emt 0:04:08]} 10. g3 {[%emt 0:01:26]} a6 {[%emt 0:00:42]} 11. Bg2 {[%emt 0:01:40]} Rb8 {[%emt 0:00:30]} 12. O-O {[%emt 0:02:04]} Nh7 {[%emt 0:06:28]} 13. d4 {[%emt 0:12:03]} cxd4 {[%emt 0:02:50]} 14. Nxd4 {[%emt 0:00:12]} Nxd4 {[%emt 0:08:27]} 15. Bxd4 {[%emt 0:00:04]} Bxd4+ {[%emt 0:05:13]} 16. Qxd4 {[%emt 0:00:05]} Qc5 {[%emt 0:00:15]} 17. Rad1 {[%emt 0:09:59]} Bc6 {[%emt 0:05:12]} 18. e5 {[%emt 0:05:34]} Qxd4+ {[%emt 0:02:30]} 19. Rxd4 {[%emt 0:00:03]} dxe5 {[%emt 0:00:37]} 20. fxe5 {[%emt 0:01:24]} Ng5 {[%emt 0:03:56]} 21. Rdf4 {[%emt 0:03:55]} Bxg2 {[%emt 0:07:52]} 22. Kxg2 {[%emt 0:00:05]} Rf8 {[%emt 0:00:50]} 23. Nd5 {[%emt 0:07:29]} Ne6 {[%emt 0:00:34]} 24. R4f2 {[%emt 0:02:17]} Rc8 {[%emt 0:00:57]} 25. b3 {[%emt 0:08:01]} Nc7 {[%emt 0:09:55]} 26. Nf4 {[%emt 0:04:32]} Rg8 {[%emt 0:08:16]} 27. Ne2 {[%emt 0:16:10]} Rf8 {[%emt 0:00:44]} 28. Nd4 {[%emt 0:00:25]} Rd8 {[%emt 0:03:03]} 29. Rf4 {[%emt 0:00:23]} e6 {[%emt 0:03:13]} 30. h4 {[%emt 0:02:18]} Ke7 {[%emt 0:02:26]} 31. Nf3 {[%emt 0:01:22]} Ne8 {[%emt 0:03:31]} 32. Rf2 {[%emt 0:01:02]} Ng7 {[%emt 0:01:23]} 33. g4 {[%emt 0:01:10]} Rd7 {[%emt 0:01:33]} 34. Nd2 {[%emt 0:01:48]} h5 {[%emt 0:01:24]} 35. Ne4 {[%emt 0:01:37]} hxg4 {[%emt 0:02:24]} 36. Nf6 {[%emt 0:00:18]} Rd3 {[%emt 0:03:41]} 37. Rxg4 {[%emt 0:03:15]} Rh8 {[%emt 0:00:21]} 38. Ne4 {[%emt 0:01:06]} Nf5 {[%emt 0:00:40]} 39. Kg1 {[%emt 0:00:45]} Rd1+ {[%emt 0:00:49]} 40. Kh2 {[%emt 0:00:17]} Nxh4 {[%emt 0:00:40]} 41. Kg3 {[%emt 0:00:38]} Nf5+ {[%emt 0:03:16]} 42. Kf4 {[%emt 0:00:26]} Rd4 {[%emt 0:00:40]} 43. Rd2 {[%emt 0:00:32]} Rxd2 {[%emt 0:01:20]} 44. Nxd2 {[%emt 0:00:01]} Rh2 {[%emt 0:00:21]} 45. Ne4 {[%emt 0:00:45]} Rxa2 {[%emt 0:00:16]} 46. Rg1 {[%emt 0:00:35]} Re2 {[%emt 0:00:52]} 47. Rd1 {[%emt 0:00:36]} Rh2 {[%emt 0:00:24]} 48. Nf6 {[%emt 0:00:35]} Rh4+ {[%emt 0:00:27]} 49. Kf3 {[%emt 0:00:35]} Rd4 {[%emt 0:00:19]} 50. Rh1 {[%emt 0:00:25]} Rd3+ {[%emt 0:00:27]} 51. Kf4 {[%emt 0:00:02]} Rd4+ {[%emt 0:00:52]} 52. Kf3 {[%emt 0:00:09]} Rd8 {[%emt 0:00:43]} 53. b4 {[%emt 0:00:50]} b5 {[%emt 0:01:17]} 54. cxb5 {[%emt 0:00:51]} axb5 {[%emt 0:00:05]} 55. Ra1 {[%emt 0:00:27]} Nd4+ {[%emt 0:00:06]} 56. Kf4 {[%emt 0:00:42]} Nc6 {[%emt 0:00:02]} 57. Ra6 {[%emt 0:00:32]} Nxb4 {[%emt 0:00:22]} 58. Ra7+ {[%emt 0:00:22]} Kf8 {[%emt 0:00:11]} 59. Kg5 {[%emt 0:00:41]} Kg7 {[%emt 0:03:13]} 60. Nd7 {[%emt 0:00:27]} Nd5 {[%emt 0:00:36]} 61. Nc5 {[%emt 0:00:30]} Re8 {[%emt 0:00:24]} 62. Rb7 {[%emt 0:00:06]} b4 {[%emt 0:00:08]} 63. Ne4 {[%emt 0:00:27]} Re7 {[%emt 0:00:56]} 64. Rb8 {[%emt 0:00:27]} Rc7 {[%emt 0:00:31]} 65. Nd6 {[%emt 0:00:53]} Rc1 {[%emt 0:00:36]} 66. Ne8+ {[%emt 0:00:31]} Kh7 {[%emt 0:00:02]} 67. Rb7 {[%emt 0:00:19]} Rg1+ {[%emt 0:00:14]} 68. Kh4 {[%emt 0:00:19]} g5+ {[%emt 0:00:11]} 69. Kh3 {[%emt 0:00:15]} Kg6 {[%emt 0:00:29]} 70. Nd6 {[%emt 0:00:28]} Rf1 {[%emt 0:00:25]} 71. Rb8 {[%emt 0:00:29]} Nf4+ {[%emt 0:00:55]} 72. Kg4 {[%emt 0:00:34]} Nd3 {[%emt 0:00:25]} 73. Rg8+ {[%emt 0:00:56]} Kh7 {[%emt 0:00:02]} 74. Rxg5 {[%emt 0:00:18]} Rg1+ {[%emt 0:00:47]} 75. Kh4 {[%emt 0:00:35]} Rxg5 {[%emt 0:00:16]} 76. Kxg5 {[%emt 0:00:01]} b3 {[%emt 0:00:35]} 77. Ne4 {[%emt 0:01:18]} b2 {[%emt 0:00:24]} 78. Nc3 {[%emt 0:00:06]} Kg7 {[%emt 0:00:21]} 79. Kg4 {[%emt 0:00:50]} Nxe5+ {[%emt 0:00:08]} 80. Kf4 {[%emt 0:00:12]} Nc4 {[%emt 0:00:25]} 81. Ke4 {[%emt 0:00:46]} 0-1

[Event "CZE-ch Amateurs 2022"]
[Site "Luhacovice"]
[Date "2022.03.14"]
[Round "3.9"]
[White "Toman, Jan"]
[Black "Zelbova, Lada"]
[Result "1-0"]
[ECO "D26"]
[WhiteElo "2127"]
[BlackElo "1905"]
[Annotator "NA"]
[PlyCount "87"]
[EventDate "2022.03.12"]
[EventType "swiss"]
[EventCountry "CZE"]
[SourceTitle "playchess.com"]
[Source "ChessBase"]
[SourceQuality "1"]
[TimeControl "5400+30"]

1. d4 {[%emt 0:00:58]} Nf6 {[%emt 0:00:30]} 2. c4 {[%emt 0:00:01]} e6 {[%emt 0:00:13]} 3. Nc3 {[%emt 0:00:06]} Bb4 {[%emt 0:00:09]} 4. e3 {[%emt 0:00:06]} O-O {[%emt 0:00:17]} 5. Bd3 {[%emt 0:00:10]} d5 {[%emt 0:00:07]} 6. Nf3 {[%emt 0:00:05]} c5 {[%emt 0:00:33]} 7. O-O {[%emt 0:01:07]} cxd4 {[%emt 0:00:15]} 8. exd4 {[%emt 0:09:26]} dxc4 {[%emt 0:00:30]} 9. Bxc4 {[%emt 0:02:08]} Nbd7 {[%emt 0:00:15]} 10. Bg5 {[%emt 0:00:32]} Be7 {[%emt 0:04:39]} 11. Qe2 {[%emt 0:15:02]} Nd5 {[%emt 0:02:07]} 12. Bd2 {[%emt 0:02:02]} N7f6 {[%emt 0:02:44]} 13. Ne5 {[%emt 0:01:22]} Nb6 {[%emt 0:01:16]} 14. Bd3 {[%emt 0:05:25]} Qxd4 {[%emt 0:04:38]} 15. Nb5 {[%emt 0:03:40]} Qd8 {[%emt 0:04:58]} 16. Ba5 {[%emt 0:00:38]} a6 {[%emt 0:03:22]} 17. Na3 {[%emt 0:01:48]} Bxa3 {[%emt 0:19:18]} 18. bxa3 {[%emt 0:03:14]} Nfd5 {[%emt 0:00:50]} 19. Nc4 {[%emt 0:03:26]} Nf4 {[%emt 0:19:33]} 20. Qe4 {[%emt 0:03:48]} Qxd3 {[%emt 0:07:27]} 21. Qxd3 {[%emt 0:01:02]} Nxd3 {[%emt 0:00:08]} 22. Nxb6 {[%emt 0:00:06]} Rb8 {[%emt 0:00:13]} 23. Rfd1 {[%emt 0:25:56]} Nf4 {[%emt 0:00:31]} 24. Bb4 {[%emt 0:00:21]} Nd5 {[%emt 0:00:56]} 25. Nxd5 {[%emt 0:00:35]} exd5 {[%emt 0:01:05]} 26. Bxf8 {[%emt 0:00:07]} Kxf8 {[%emt 0:00:06]} 27. Rxd5 {[%emt 0:00:04]} Be6 {[%emt 0:00:11]} 28. Rd6 {[%emt 0:00:19]} Rc8 {[%emt 0:00:51]} 29. f3 {[%emt 0:01:23]} Ke7 {[%emt 0:06:18]} 30. Rb6 {[%emt 0:01:25]} Bd5 {[%emt 0:00:56]} 31. Rd1 {[%emt 0:02:20]} Bc6 {[%emt 0:01:38]} 32. Kf2 {[%emt 0:00:44]} f6 {[%emt 0:00:20]} 33. Ke3 {[%emt 0:02:19]} Kf7 {[%emt 0:00:18]} 34. Rd4 {[%emt 0:00:31]} Re8+ $18 {[%emt 0:03:25]} 35. Kd2 {[%emt 0:01:15]} h6 {[%emt 0:00:10]} 36. a4 {[%emt 0:02:31]} Re7 {[%emt 0:02:40]} 37. h3 {[%emt 0:01:52]} Kg6 {[%emt 0:01:10]} 38. Rbb4 {[%emt 0:01:30]} Kf7 {[%emt 0:01:50]} 39. Rd6 {[%emt 0:01:29]} Kg6 {[%emt 0:00:58]} 40. Kc3 {[%emt 0:01:16]} Re3+ {[%emt 0:01:06]} 41. Rd3 {[%emt 0:01:44]} Re2 {[%emt 0:00:24]} 42. Rd2 {[%emt 0:05:43]} Re3+ {[%emt 0:00:13]} 43. Kd4 {[%emt 0:00:55]} Re5 {[%emt 0:00:40]} 44. Rc2 {[%emt 0:01:03]} 1-0

[Event "CZE-ch Amateurs 2022"]
[Site "Luhacovice"]
[Date "2022.03.14"]
[Round "3.10"]
[White "Cupek, Martin"]
[Black "Malinovsky, Petr"]
[Result "1/2-1/2"]
[ECO "A17"]
[WhiteElo "2108"]
[BlackElo "1965"]
[Annotator "NA"]
[PlyCount "130"]
[EventDate "2022.03.12"]
[EventType "swiss"]
[EventCountry "CZE"]
[SourceTitle "playchess.com"]
[Source "ChessBase"]
[SourceQuality "1"]
[TimeControl "5400+30"]

1. c4 {[%emt 0:00:10]} e6 {[%emt 0:00:36]} 2. g3 {[%emt 0:01:32]} d5 {[%emt 0:00:30]} 3. Bg2 {[%emt 0:00:20]} Nf6 {[%emt 0:00:38]} 4. Nc3 {[%emt 0:02:39]} Be7 {[%emt 0:01:18]} 5. d4 {[%emt 0:05:33]} O-O {[%emt 0:02:51]} 6. e4 {[%emt 0:03:53]} dxe4 {[%emt 0:02:08]} 7. Be3 {[%emt 0:01:20]} Nbd7 {[%emt 0:03:25]} 8. Nxe4 {[%emt 0:07:42]} Nxe4 {[%emt 0:02:26]} 9. Bxe4 {[%emt 0:00:03]} Nf6 {[%emt 0:00:11]} 10. Bf3 {[%emt 0:01:44]} Rb8 {[%emt 0:05:30]} 11. Qc2 {[%emt 0:04:17]} Bb4+ {[%emt 0:03:51]} 12. Kf1 {[%emt 0:00:59]} Be7 {[%emt 0:05:41]} 13. Kg2 {[%emt 0:01:21]} b6 {[%emt 0:00:13]} 14. Rd1 {[%emt 0:01:14]} Bb7 {[%emt 0:00:36]} 15. Bxb7 {[%emt 0:02:39]} Rxb7 {[%emt 0:00:02]} 16. f3 {[%emt 0:00:26]} Qb8 {[%emt 0:05:28]} 17. d5 {[%emt 0:10:56]} exd5 {[%emt 0:03:01]} 18. cxd5 {[%emt 0:00:02]} Rd8 {[%emt 0:00:55]} 19. Qb3 {[%emt 0:00:08]} Qa8 {[%emt 0:04:55]} 20. Bg5 {[%emt 0:05:00]} Rbb8 {[%emt 0:02:36]} 21. Bxf6 {[%emt 0:00:07]} Bxf6 {[%emt 0:00:09]} 22. Nh3 {[%emt 0:00:57]} Rd6 {[%emt 0:02:54]} 23. Rd3 {[%emt 0:05:19]} Rbd8 {[%emt 0:02:31]} 24. Rhd1 $1 {[%emt 0:00:20]} c6 {[%emt 0:12:56]} 25. dxc6 {[%emt 0:06:36]} Qxc6 {[%emt 0:00:10]} 26. Nf2 {[%emt 0:00:47]} g6 {[%emt 0:09:16]} 27. Rxd6 {[%emt 0:06:58]} Rxd6 {[%emt 0:00:04]} 28. Rxd6 {[%emt 0:00:13]} Qxd6 {[%emt 0:00:06]} 29. Qd3 {[%emt 0:00:06]} Qe5 {[%emt 0:03:34]} 30. Nd1 {[%emt 0:07:31]} Qe1 {[%emt 0:00:33]} 31. b3 {[%emt 0:01:37]} Be7 {[%emt 0:02:42]} 32. Ne3 $11 {[%emt 0:03:31]} Bc5 {[%emt 0:01:33]} 33. Ng4 {[%emt 0:04:30]} Kg7 {[%emt 0:02:35]} 34. Qe4 {[%emt 0:04:21]} Qxe4 {[%emt 0:06:16]} 35. fxe4 {[%emt 0:00:04]} h5 {[%emt 0:00:11]} 36. Ne5 {[%emt 0:00:08]} Kf6 {[%emt 0:01:17]} 37. Nd3 {[%emt 0:00:07]} Bd6 {[%emt 0:01:12]} 38. h3 {[%emt 0:00:52]} Ke6 {[%emt 0:00:51]} 39. Kf3 {[%emt 0:01:04]} f5 {[%emt 0:01:53]} 40. exf5+ {[%emt 0:00:57]} Kxf5 {[%emt 0:00:02]} 41. g4+ {[%emt 0:00:22]} hxg4+ {[%emt 0:01:42]} 42. hxg4+ {[%emt 0:00:02]} Kf6 {[%emt 0:00:23]} 43. Ke4 {[%emt 0:00:40]} Kg5 {[%emt 0:00:14]} 44. Kf3 {[%emt 0:00:26]} Kf6 {[%emt 0:00:20]} 45. a4 {[%emt 0:00:03]} a5 {[%emt 0:02:08]} 46. Nf4 {[%emt 0:04:14]} Bc5 {[%emt 0:00:55]} 47. Nd3 {[%emt 0:05:06]} Bd6 {[%emt 0:00:16]} 48. Nb2 {[%emt 0:00:47]} Bc5 {[%emt 0:00:28]} 49. Nc4 {[%emt 0:00:08]} Bg1 {[%emt 0:00:17]} 50. Kf4 {[%emt 0:00:17]} Bh2+ {[%emt 0:00:19]} 51. Ke4 {[%emt 0:00:11]} Bg1 {[%emt 0:01:52]} 52. Ne5 {[%emt 0:00:20]} Bc5 {[%emt 0:02:17]} 53. Nf3 {[%emt 0:00:21]} Ke6 {[%emt 0:00:35]} 54. Ne5 {[%emt 0:05:30]} Kf6 {[%emt 0:00:56]} 55. Nd7+ {[%emt 0:00:20]} Kg5 {[%emt 0:00:11]} 56. Nxc5 {[%emt 0:01:06]} bxc5 {[%emt 0:00:05]} 57. Kf3 {[%emt 0:00:05]} Kf6 {[%emt 0:01:50]} 58. Ke4 {[%emt 0:00:31]} Kg5 {[%emt 0:01:53]} 59. Kf3 {[%emt 0:00:00]} Kf6 {[%emt 0:00:12]} 60. Kf4 {[%emt 0:01:04]} g5+ {[%emt 0:01:04]} 61. Kf3 {[%emt 0:00:51]} Ke5 {[%emt 0:01:03]} 62. Ke3 {[%emt 0:00:04]} Kd5 {[%emt 0:00:15]} 63. Kd3 {[%emt 0:00:01]} Kd6 {[%emt 0:00:26]} 64. Kc3 {[%emt 0:01:17]} Kd5 {[%emt 0:00:13]} 65. Kd3 {[%emt 0:00:22]} Kd6 {[%emt 0:00:10]} 1/2-1/2

[Event "CZE-ch Amateurs 2022"]
[Site "Luhacovice"]
[Date "2022.03.14"]
[Round "3.11"]
[White "Plasek, Zdenek"]
[Black "Urban, Zdenek"]
[Result "0-1"]
[ECO "B92"]
[WhiteElo "1914"]
[BlackElo "2093"]
[Annotator "ChessBase"]
[PlyCount "111"]
[EventDate "2022.03.12"]
[EventType "swiss"]
[EventCountry "CZE"]
[SourceTitle "playchess.com"]
[Source "ChessBase"]
[SourceQuality "1"]
[TimeControl "5400+30"]

1. Nf3 {[%emt 0:00:35]} c5 {[%emt 0:00:49]} 2. e4 {[%emt 0:00:50]} d6 {[%emt 0:00:18]} 3. d4 {[%emt 0:00:22]} cxd4 {[%emt 0:00:08]} 4. Nxd4 {[%emt 0:00:03]} Nf6 {[%emt 0:00:13]} 5. Nc3 {[%emt 0:00:04]} a6 {[%emt 0:01:24]} 6. a4 {[%emt 0:00:23]} e5 {[%emt 0:01:45]} 7. Nf3 {[%emt 0:02:14]} Be7 {[%emt 0:01:23]} 8. Be2 {[%emt 0:00:14]} O-O {[%emt 0:02:59]} 9. O-O {[%emt 0:00:10]} b6 {[%emt 0:02:59]} 10. Re1 {[%emt 0:00:56]} Bb7 {[%emt 0:00:52]} 11. Bc4 {[%emt 0:01:07]} Qc7 {[%emt 0:01:31]} 12. Bd5 {[%emt 0:02:25]} Nbd7 {[%emt 0:00:56]} 13. Bxb7 {[%emt 0:30:52]} Qxb7 {[%emt 0:00:06]} 14. Be3 {[%emt 0:00:09]} Rac8 {[%emt 0:04:26]} 15. Nd2 {[%emt 0:01:15]} Rfd8 {[%emt 0:02:20]} 16. Qe2 {[%emt 0:01:40]} d5 {[%emt 0:02:32]} 17. exd5 {[%emt 0:00:38]} Nxd5 {[%emt 0:00:13]} 18. Nxd5 {[%emt 0:00:26]} Qxd5 {[%emt 0:00:12]} 19. c3 {[%emt 0:06:45]} Bc5 {[%emt 0:04:13]} 20. Nc4 {[%emt 0:06:11]} Bxe3 {[%emt 0:27:09]} 21. Nxe3 {[%emt 0:00:34]} Qe6 {[%emt 0:01:25]} 22. Qxa6 {[%emt 0:06:14]} Nc5 {[%emt 0:00:49]} 23. Qe2 {[%emt 0:04:32]} Qb3 {[%emt 0:00:43]} 24. Qb5 {[%emt 0:07:14]} Qxb5 {[%emt 0:06:36]} 25. axb5 {[%emt 0:00:02]} Nd3 {[%emt 0:00:09]} 26. Reb1 {[%emt 0:00:48]} g6 {[%emt 0:02:56]} 27. c4 {[%emt 0:00:57]} f5 {[%emt 0:01:48]} 28. b3 {[%emt 0:00:16]} Nf4 {[%emt 0:02:04]} 29. g3 {[%emt 0:02:20]} Ne2+ {[%emt 0:01:23]} 30. Kf1 {[%emt 0:00:33]} Nc3 {[%emt 0:01:06]} 31. Rc1 {[%emt 0:00:47]} Ne4 {[%emt 0:00:05]} 32. Ra3 {[%emt 0:06:55]} Rd2 {[%emt 0:01:23]} 33. Rd1 {[%emt 0:08:55]} f4 {[%emt 0:01:08]} 34. Rxd2 {[%emt 0:05:41]} Nxd2+ {[%emt 0:00:03]} 35. Ke2 {[%emt 0:00:54]} fxe3 {[%emt 0:00:07]} 36. Kxe3 {[%emt 0:00:53]} Nf1+ {[%emt 0:01:46]} 37. Ke4 {[%emt 0:00:10]} Nxh2 {[%emt 0:00:10]} 38. Ra6 {[%emt 0:00:13]} Ng4 {[%emt 0:10:32]} 39. Rxb6 {[%emt 0:00:21]} Kf7 {[%emt 0:03:41]} 40. Ra6 {[%emt 0:01:48]} Nxf2+ {[%emt 0:02:58]} 41. Kxe5 {[%emt 0:00:03]} Nd3+ {[%emt 0:00:09]} 42. Kd6 {[%emt 0:01:36]} h5 {[%emt 0:06:00]} 43. b6 {[%emt 0:00:44]} Nb4 {[%emt 0:05:59]} 44. Ra7+ {[%emt 0:00:38]} Kf6 {[%emt 0:01:17]} 45. b7 {[%emt 0:00:31]} Rc6+ {[%emt 0:00:11]} 46. Kd7 {[%emt 0:00:18]} Rb6 {[%emt 0:00:08]} 47. Kc8 {[%emt 0:00:24]} Rc6+ {[%emt 0:00:03]} 48. Kd8 {[%emt 0:01:20]} Rb6 {[%emt 0:00:14]} 49. c5 {[%emt 0:00:41]} Rb5 {[%emt 0:00:16]} 50. Kd7 {[%emt 0:00:30]} g5 {[%emt 0:00:47]} 51. c6 {[%emt 0:00:11]} Nxc6 {[%emt 0:00:33]} 52. Kxc6 {[%emt 0:00:04]} Rxb3 {[%emt 0:00:03]} 53. Ra5 {[%emt 0:00:39]} Rxb7 {[%emt 0:01:51]} 54. Kxb7 {[%emt 0:00:02]} h4 {[%emt 0:00:01]} 55. gxh4 {[%emt 0:00:38]} gxh4 {[%emt 0:00:02]} 56. Rh5 {[%emt 0:00:07]} 0-1

[Event "CZE-ch Amateurs 2022"]
[Site "Luhacovice"]
[Date "2022.03.14"]
[Round "3.12"]
[White "Navratilik, Pavel"]
[Black "Novotny, Josef"]
[Result "0-1"]
[ECO "A41"]
[WhiteElo "2082"]
[BlackElo "2033"]
[Annotator "NA"]
[PlyCount "162"]
[EventDate "2022.03.12"]
[EventType "swiss"]
[EventCountry "CZE"]
[SourceTitle "playchess.com"]
[Source "ChessBase"]
[SourceQuality "1"]
[TimeControl "5400+30"]

1. d4 {[%emt 0:00:06]} e6 {[%emt 0:00:15]} 2. c4 {[%emt 0:00:05]} d6 {[%emt 0:00:05]} 3. Nc3 {[%emt 0:00:11]} g6 {[%emt 0:00:20]} 4. Nf3 {[%emt 0:00:37]} Bg7 {[%emt 0:00:12]} 5. e4 {[%emt 0:01:19]} Nf6 {[%emt 0:00:54]} 6. Be3 {[%emt 0:03:14]} Ng4 {[%emt 0:01:29]} 7. Bg5 {[%emt 0:00:55]} f6 {[%emt 0:01:00]} 8. Bd2 {[%emt 0:02:32]} Nh6 {[%emt 0:00:34]} 9. Be2 {[%emt 0:02:15]} Nf7 {[%emt 0:00:17]} 10. Qc2 {[%emt 0:02:49]} Nc6 {[%emt 0:00:46]} 11. Rd1 {[%emt 0:00:30]} O-O {[%emt 0:00:33]} 12. O-O {[%emt 0:00:55]} Bd7 {[%emt 0:00:25]} 13. d5 {[%emt 0:03:01]} exd5 {[%emt 0:00:25]} 14. Nxd5 {[%emt 0:01:25]} Nfe5 {[%emt 0:08:14]} 15. Bc3 {[%emt 0:02:47]} f5 {[%emt 0:08:57]} 16. Nxe5 {[%emt 0:01:57]} dxe5 {[%emt 0:00:30]} 17. exf5 {[%emt 0:12:10]} Bxf5 {[%emt 0:00:41]} 18. Bd3 {[%emt 0:01:05]} Nd4 {[%emt 0:02:22]} 19. Bxd4 {[%emt 0:04:47]} exd4 {[%emt 0:00:16]} 20. Bxf5 {[%emt 0:03:27]} Rxf5 {[%emt 0:00:15]} 21. Rde1 {[%emt 0:00:27]} Rf7 {[%emt 0:01:42]} 22. Qe4 {[%emt 0:04:18]} Qf8 {[%emt 0:09:38]} 23. Re2 {[%emt 0:05:12]} c6 {[%emt 0:19:11]} 24. Ne7+ {[%emt 0:00:25]} Kh8 {[%emt 0:00:18]} 25. Qh4 {[%emt 0:02:14] [#]} Rf6 $1 {[%emt 0:09:12]} 26. Qxd4 {[%emt 0:07:26]} Re6 {[%emt 0:01:46]} 27. Qh4 {[%emt 0:03:10]} (27. Nxg6+ $142 Rxg6 28. Qe4) 27... g5 {[%emt 0:01:26]} 28. Qh5 {[%emt 0:10:42]} Rxe7 {[%emt 0:01:00]} 29. Rfe1 {[%emt 0:00:21]} Bf6 {[%emt 0:02:17]} 30. g3 {[%emt 0:01:29]} Qf7 {[%emt 0:02:12]} 31. Qf3 {[%emt 0:02:28]} Rae8 {[%emt 0:00:49]} 32. b3 {[%emt 0:00:46]} Rxe2 {[%emt 0:00:33]} 33. Rxe2 {[%emt 0:00:11]} Rxe2 {[%emt 0:00:06]} 34. Qxe2 {[%emt 0:00:10]} Bd4 {[%emt 0:00:24]} 35. Kg2 {[%emt 0:00:19]} Kg7 {[%emt 0:06:51]} 36. f3 {[%emt 0:01:02]} Kf8 {[%emt 0:03:52]} 37. Qd2 {[%emt 0:01:58]} Qg7 {[%emt 0:02:17]} 38. Qb4+ {[%emt 0:01:04]} Qe7 $19 {[%emt 0:00:19]} 39. Qa5 {[%emt 0:01:22]} Bb6 {[%emt 0:03:10]} 40. Qf5+ {[%emt 0:00:23]} Ke8 {[%emt 0:00:10]} 41. a4 {[%emt 0:01:47]} a5 {[%emt 0:01:28]} 42. Qd3 {[%emt 0:01:44]} Qd7 {[%emt 0:01:54]} 43. Qe4+ {[%emt 0:00:47]} Qe7 {[%emt 0:01:45]} 44. Qd3 {[%emt 0:00:22]} Bc7 {[%emt 0:00:44]} 45. Qf5 {[%emt 0:00:34]} Kd8 {[%emt 0:00:58]} 46. Qd3+ {[%emt 0:02:00]} Kc8 {[%emt 0:00:19]} 47. Qd2 {[%emt 0:01:21]} Kb8 {[%emt 0:00:11]} 48. Qd3 {[%emt 0:00:29]} Ka7 {[%emt 0:00:13]} 49. Qd4+ {[%emt 0:00:33]} Bb6 {[%emt 0:00:14]} 50. Qd3 {[%emt 0:00:39]} h5 {[%emt 0:00:22]} 51. Kh3 {[%emt 0:04:05]} Qe6+ {[%emt 0:01:07]} 52. Kg2 {[%emt 0:00:56]} Qe3 {[%emt 0:00:39]} 53. Qd1 {[%emt 0:00:37]} Qf2+ {[%emt 0:01:19]} 54. Kh3 {[%emt 0:00:45]} Be3 {[%emt 0:00:50]} 55. Qh1 {[%emt 0:01:01]} Qg1 {[%emt 0:00:35]} 56. Qxg1 {[%emt 0:01:10]} Bxg1 {[%emt 0:00:08]} 57. f4 {[%emt 0:02:05]} gxf4 {[%emt 0:00:21]} 58. gxf4 {[%emt 0:00:09]} Kb6 {[%emt 0:00:22]} 59. f5 {[%emt 0:00:39]} Kc5 {[%emt 0:00:32]} 60. f6 {[%emt 0:01:01]} Kd6 {[%emt 0:00:15]} 61. Kh4 {[%emt 0:00:57]} Bxh2 {[%emt 0:01:04]} 62. Kxh5 {[%emt 0:00:17]} Ke6 {[%emt 0:00:15]} 63. Kg6 {[%emt 0:00:38]} Bd6 {[%emt 0:00:21]} 64. f7 {[%emt 0:00:42]} Bf8 {[%emt 0:00:26]} 65. Kg5 {[%emt 0:00:49]} Kxf7 {[%emt 0:00:13]} 66. Kf5 {[%emt 0:00:34]} Bd6 {[%emt 0:00:09]} 67. Ke4 {[%emt 0:00:12]} Ke6 {[%emt 0:00:07]} 68. Kd4 {[%emt 0:00:09]} b6 {[%emt 0:00:46]} 69. Ke4 {[%emt 0:00:19]} Bb4 {[%emt 0:01:08]} 70. Kf4 {[%emt 0:00:28]} Kf6 {[%emt 0:01:24]} 71. Ke4 {[%emt 0:00:15]} Bd6 {[%emt 0:00:45]} 72. Kd4 {[%emt 0:00:39]} Kf5 {[%emt 0:00:10]} 73. Kd3 {[%emt 0:00:15]} Kf4 {[%emt 0:00:19]} 74. Kd4 {[%emt 0:00:12]} Bc5+ {[%emt 0:00:28]} 75. Kd3 {[%emt 0:00:05]} Kf3 {[%emt 0:00:07]} 76. Kd2 {[%emt 0:00:31]} Ke4 {[%emt 0:00:09]} 77. Kc3 {[%emt 0:00:20]} Ke3 {[%emt 0:00:10]} 78. Kc2 {[%emt 0:00:06]} Bd4 {[%emt 0:00:33]} 79. b4 {[%emt 0:01:23]} axb4 {[%emt 0:00:24]} 80. Kb3 {[%emt 0:00:06]} c5 {[%emt 0:00:26]} 81. Kc2 {[%emt 0:00:25]} Ke2 {[%emt 0:00:12]} 0-1